[Event "Silves Open 2025"]
[Site "Fissul"]
[Date "2025.03.03"]
[Round "3.24"]
[White "Jeremias, Damaim"]
[Black "Santos, Joao Artur Almeida"]
[Result "0-1"]
[Annotator "TA"]
[ECO "E11"]
[WhiteElo "1690"]
[BlackElo "1950"]
[PlyCount "74"]
[EventDate "2025.03.03"]
[EventType "swiss"]
[EventCountry "POR"]
[SourceTitle "playchess.com"]
[Source "ChessBase"]
[SourceQuality "1"]
[TimeControl "5400+30"]

{[%evp 17,74,18,21,11,28,2,12,-53,-56,-146,-160,-129,-156,-160,-114,-120,-120,-149,-146,-166,-133,-129,-142,-169,-13,-13,-21,-205,-214,-209,-183,-187,-141,-264,-250,-332,-295,-285,-243,-463,-464,-450,-449,-584,-536,-606,-611,-611,-607,-547,-503,-503,-504,-623,-574,-6387,-5465,-29998,-29994]} 1. Nf3 {[%emt 0:00:31]} Nf6 {[%emt 0:00:25]} 2. d4 {[%emt 0:00:20]} e6 {[%emt 0:00:07]} 3. c4 {[%emt 0:00:23]} Bb4+ {[%emt 0:00:07]} 4. Bd2 {[%emt 0:00:17]} Qe7 {[%emt 0:00:04]} 5. a3 {[%emt 0:04:32]} Bxd2+ {[%emt 0:00:06]} 6. Nbxd2 {[%emt 0:00:42]} a5 {[%emt 0:00:51]} 7. g3 {[%emt 0:01:24]} d6 {[%emt 0:00:17]} 8. Bg2 {[%emt 0:00:23]} Nc6 {[%emt 0:00:12]} 9. O-O {[%emt 0:03:11]} O-O {[%emt 0:01:00]} 10. Re1 {[%emt 0:02:47] E11: Bogo-Indian.} a4 {[%emt 0:01:12]} 11. Rc1 {[%emt 0:02:38]} e5 {[%emt 0:00:44]} 12. dxe5 $146 {[%emt 0:02:26]} (12. e3 $11) (12. d5 Nb8 13. Ng5 Nbd7 14. Qc2 h6 15. Nge4 Nxe4 16. Bxe4 Nc5 17. Bh7+ Kh8 18. Bf5 Bxf5 19. Qxf5 {0-1 Gaber,L (1499)-Golob,H (1889) Sentjur Ipavec Memorial 9th 2008 (2)}) 12... dxe5 $15 {[%emt 0:00:15]} 13. Qc2 {[%emt 0:04:07]} (13. e3 $15) 13... e4 $17 {[%emt 0:02:02]} 14. Ng5 {[%emt 0:05:49] [#]} e3 {[%emt 0:00:14] Black plays in the center} 15. Nde4 {[%emt 0:03:36]} Bf5 {[%emt 0:01:44]} (15... Nxe4 $142 16. Nxe4 Bf5) 16. f3 {[%emt 1:05:24]} (16. Nxf6+ $2 Qxf6 17. Qc3 exf2+ (17... Qxg5 $2 18. f4 $19) 18. Kxf2 Qxg5 $19) 16... Nxe4 {[%emt 0:02:02]} 17. Nxe4 {[%emt 0:00:00]} Rfd8 {[%emt 0:00:45][%cal Od8d2]} 18. Qc3 {[%emt 0:00:00]} Bxe4 {[%emt 0:00:20] Successful Defense Black} 19. fxe4 {[%emt 0:00:00] White is weak on the dark squares} Qc5 $36 {[%emt 0:00:06][%mdl 2048] Keeping White busy. Black is more active.} 20. Rcd1 {[%emt 0:00:00]} Ne5 $2 {[%emt 0:01:01]} ({Black should try} 20... Rd2 $19 {Hoping for ...Rad8.} 21. e5 Nxe5) 21. Rd5 $11 {[%emt 0:00:00]} Rxd5 {[%emt 0:00:09]} (21... Qxc4 $2 {too greedy.} 22. Qxe5 (22. Rxe5 Qxc3 23. bxc3 Kf8 $18) 22... c6 23. Rxd8+ Rxd8 24. Qe7 $18) 22. cxd5 {[%emt 0:00:00] This costs White the game.} (22. exd5 $11 {and White has nothing to worry.} Nxc4 23. d6 cxd6 24. Rc1) 22... Qxc3 $19 {[%emt 0:00:36]} 23. bxc3 $11 {[%emt 0:00:00][%mdl 4096] Endgame KRB-KRN} Nc4 {[%emt 0:00:31]} 24. Ra1 {[%emt 0:00:00]} Ra6 {[%emt 0:00:11]} (24... Kf8 $19 25. e5 Nxe5) 25. Kf1 {[%emt 0:00:00]} (25. e5 $17) 25... Rb6 {[%emt 0:00:12][%cal Oc4a3]} 26. Ke1 {[%emt 0:00:00] [#]} Nxa3 $1 {[%emt 0:00:21]} 27. Kd1 {[%emt 0:00:00] Dodges Nc2} Nc4 {[%emt 0:00:16]} 28. Kc2 $2 {[%emt 0:00:00]} (28. e5) 28... Rb2+ $19 {[%emt 0:00:13]} 29. Kd3 {[%emt 0:00:00]} b5 {[%emt 0:00:14][%csl Gc4,Ge3][%cal Rb2d2]} 30. Kd4 {[%emt 0:00:00]} Rxe2 {[%emt 0:00:15]} 31. Bf3 {[%emt 0:00:00]} Rd2+ {[%emt 0:00:20]} 32. Kc5 {[%emt 0:08:00]} Ne5 {[%emt 1:29:38]} 33. Bd1 {[%emt 0:00:00] [#]} Rxd1 $1 {[%emt 0:00:00]} 34. Rxd1 {[%emt 0:00:00][%cal Od1a1]} e2 {[%emt 0:00:00]} 35. Rb1 {[%emt 0:00:00]} a3 {[%emt 0:00:00]} 36. Kd4 {[%emt 0:00:00] [#]} e1=Q $1 {[%emt 0:00:00][%mdl 512]} 37. Rxb5 {[%emt 0:00:00]} (37. Rxe1 Nf3+) 37... f6 {[%emt 0:00:00] Weighted Error Value: White=0.99/Black=0.21 (precise)   Loses game:     	White=1     	---        Mistake:       	White=4     	Black=3      Inaccurate:     	White=5     	---        OK:         	White=6     	Black=8      Best:        	White=1     	Black=3} 0-1

[Event "Silves Open 2025"]
[Site "Fissul"]
[Date "2025.03.03"]
[Round "3.25"]
[White "Leal, Jose Alberto"]
[Black "Peixoto, Helio Ricardo Soutin"]
[Result "1-0"]
[Annotator "TA"]
[ECO "A48"]
[WhiteElo "1688"]
[BlackElo "1918"]
[PlyCount "96"]
[EventDate "2025.03.03"]
[EventType "swiss"]
[EventCountry "POR"]
[SourceTitle "playchess.com"]
[Source "ChessBase"]
[SourceQuality "1"]
[TimeControl "5400+30"]

{[%evp 15,96,0,0,-19,-20,-68,-25,-67,-66,-58,-66,-50,-54,-113,-89,-98,-106,-134,-125,-122,-137,-137,-134,-137,-109,-134,-83,-155,-60,-66,-68,-76,-69,-93,-48,-48,-36,-37,-29,-29,-29,-29,-4,-37,-37,-37,-14,-37,0,-37,-37,-37,-37,-108,-37,-37,-37,-37,-37,-37,-37,-37,-8,-23,-52,-66,-85,-176,0,-90,527,-70,608,629,616,559,29978,29979,29979,29980,29979,29980,29979]} 1. Nf3 {[%emt 1:31:00]} Nf6 {[%emt 1:31:00]} 2. d4 {[%emt 0:00:30]} g6 {[%emt 0:00:30]} 3. b3 {[%emt 0:00:30]} Bg7 {[%emt 0:00:30]} 4. Bb2 {[%emt 0:00:30]} O-O {[%emt 0:00:30]} 5. e3 {[%emt 0:00:30]} c5 {[%emt 0:00:30]} 6. Be2 {[%emt 0:00:30]} Nc6 {[%emt 0:00:30]} 7. O-O {[%emt 0:00:30]} cxd4 {[%emt 0:00:30]} 8. exd4 {[%emt 0:00:30]} d5 {[%emt 0:00:30]} 9. h3 {[%emt 0:00:30] A48: 1 d4 Nf6 2 Nf3 g6: Torre, London and Colle Systems.} Ne4 {[%emt 0:00:30]} 10. Nbd2 {[%emt 0:00:30]} (10. Na3 $11) 10... Bf5 {[%emt 0:00:30]} 11. Nxe4 $146 {[%emt 0:00:30] Black has an edge.} (11. Bd3 Nb4 12. Bxe4 dxe4 13. Nh4 Bxd4 14. c3 Bf6 15. Nxf5 gxf5 16. cxb4 Bxb2 17. Rb1 Bg7 {0-1 Remolar Gallen,J (2305)-Hnydiuk,A (2394) Titled Tuesday intern op 10th May Late blitz 2022 (7)}) 11... dxe4 {[%emt 0:00:30]} 12. Ne5 {[%emt 0:00:30]} Nxe5 {[%emt 0:00:30]} 13. dxe5 {[%emt 0:00:30]} Qc7 {[%emt 0:00:30][%cal Of8d8]} 14. g4 {[%emt 0:00:30]} (14. Bc4 $15) 14... Rfd8 {[%emt 0:00:30]} (14... Bxe5 15. Bxe5 Qxe5 16. gxf5 $16) 15. Qc1 {[%emt 0:00:30]} Be6 {[%emt 0:00:30]} 16. c4 {[%emt 0:00:30]} Bxe5 {[%emt 0:00:30]} 17. Bxe5 {[%emt 0:00:30]} Qxe5 {[%emt 0:00:30]} 18. Qe3 {[%emt 0:00:30]} f5 {[%emt 0:00:30]} 19. f4 {[%emt 0:00:30]} Qd4 {[%emt 0:00:30]} 20. Kf2 {[%emt 0:00:30]} Rd7 {[%emt 0:00:30]} (20... Qf6 21. Rad1 Rac8) 21. g5 {[%emt 0:00:30]} ({White should play} 21. Qxd4 Rxd4 22. Rfd1 Rxd1 23. Rxd1) 21... Rad8 {[%emt 0:00:30]} (21... Qb2 $17 {And now ...Rad8 would win.} 22. Rfb1 Qa3) 22. Qxd4 $1 $15 {[%emt 0:00:30]} Rxd4 {[%emt 0:00:30]} 23. Rfd1 {[%emt 0:00:30]} Kf7 {[%emt 0:00:30]} 24. Ke3 {[%emt 0:00:30]} R4d7 {[%emt 0:00:30]} 25. Rxd7 {[%emt 0:00:30]} Rxd7 {[%emt 0:00:30][%mdl 4096] Endgame KRB-KRB. Black is a pawn up.} 26. Rd1 {[%emt 0:00:30]} b6 {[%emt 0:00:30]} 27. Rxd7 {[%emt 0:00:30]} Bxd7 $11 {[%emt 0:00:30] KB-KB. Black is a pawn up.} 28. Kd4 {[%emt 0:00:30]} Ke6 {[%emt 0:00:30]} 29. h4 {[%emt 0:00:30]} Kd6 {[%emt 0:00:30]} 30. Bf1 {[%emt 0:00:30]} Bc6 {[%emt 0:00:30]} 31. Be2 {[%emt 0:00:30]} Bd7 {[%emt 0:00:30]} 32. Bf1 {[%emt 0:00:30]} Kc6 {[%emt 0:00:30]} 33. Be2 {[%emt 0:00:30]} a6 {[%emt 0:00:30]} 34. a4 {[%emt 0:00:30]} (34. b4 $15) 34... Be6 {[%emt 0:00:30]} (34... a5 $17 35. h5 Kd6) 35. b4 $15 {[%emt 0:00:30]} a5 {[%emt 0:00:30]} 36. b5+ {[%emt 0:00:30]} Kd6 {[%emt 0:00:30]} 37. Bf1 {[%emt 0:00:30]} Bc8 {[%emt 0:00:30]} 38. Be2 {[%emt 0:00:30]} Bb7 {[%emt 0:00:30]} 39. Bf1 {[%emt 0:00:30]} e3 {[%emt 0:00:30]} 40. Kxe3 {[%emt 0:00:30]} Kc5 {[%emt 0:00:30]} 41. Kd3 {[%emt 0:00:30]} (41. Be2 $17) 41... Kb4 $2 {[%emt 0:00:30]} ({Black should try} 41... Be4+ $19 42. Kc3 Bf3) 42. Kd4 {[%emt 0:00:30] [#]} (42. Be2 $1 $11) 42... Kxa4 $2 {[%emt 0:00:30][%mdl 8192] [#]} (42... Bf3 $1 $17 {stays on course.}) 43. c5 $2 {[%emt 0:00:30]} (43. Kc3 $1 $18 e6 44. c5) 43... bxc5+ $2 {[%emt 0:00:30][%mdl 8192]} (43... Kb4 $15 44. c6 Bc8) 44. Kxc5 $18 {[%emt 0:00:30] Threatens to win with Bc4.} Bc8 {[%emt 0:00:30]} 45. Bc4 {[%emt 0:00:30]} e6 {[%emt 0:00:30]} 46. b6 {[%emt 0:00:30] White mates.} Ka3 {[%emt 0:00:30] [#]} 47. Bxe6 $1 {[%emt 0:00:30][%mdl 512]} Bb7 {[%emt 0:00:30]} 48. Bd5 {[%emt 0:00:30]} Bc8 {[%emt 0:00:30] Weighted Error Value: White=0.38/Black=0.71  Loses game:     	---       	Black=2      Missed win:     	White=1     	Black=1      Mistake:       	White=6     	Black=3      Inaccurate:     	White=2     	Black=3      OK:         	White=13    	Black=7      Best:        	---       	Black=2      Strong:       	White=1     	---} 1-0

[Event "Silves Open 2025"]
[Site "Fissul"]
[Date "2025.03.03"]
[Round "3.26"]
[White "Dumont, Andre"]
[Black "Bravo Galvez, Ricardo"]
[Result "1/2-1/2"]
[Annotator "TA"]
[ECO "A13"]
[WhiteElo "1891"]
[BlackElo "2098"]
[PlyCount "129"]
[EventDate "2025.03.03"]
[EventType "swiss"]
[EventCountry "POR"]
[SourceTitle "playchess.com"]
[Source "ChessBase"]
[SourceQuality "1"]
[TimeControl "5400+30"]

{[%evp 9,129,9,21,17,29,21,27,28,22,16,24,22,46,14,27,30,27,0,35,43,47,-2,0,-16,0,-48,0,-24,0,0,37,29,22,22,32,12,34,41,43,12,47,44,52,8,8,20,29,0,52,52,49,27,35,0,83,77,81,-1,24,8,253,253,405,412,371,22,22,45,64,64,56,56,56,56,56,56,56,56,56,42,56,56,101,15,56,56,101,56,101,102,102,102,149,149,149,25,25,25,25,8,8,4,183,150,150,93,183,25,183,162,162,162,162,162,162,75,75,75,75,75,75,75]} 1. Nf3 {[%emt 0:00:30]} d5 {[%emt 0:02:01]} 2. e3 {[%emt 0:00:00]} Nf6 {[%emt 0:03:13]} 3. b3 {[%emt 0:01:33]} e6 {[%emt 0:01:40]} 4. Bb2 {[%emt 0:00:48]} Be7 {[%emt 0:02:08]} 5. c4 {[%emt 0:02:41]} Nbd7 {[%emt 0:08:51]} 6. Nc3 {[%emt 0:00:30] A13: English Opening: 1...e6.} c6 {[%emt 0:00:27]} 7. Qc2 {[%emt 0:00:18]} Qc7 {[%emt 0:05:03]} 8. d4 {[%emt 0:02:33] White has an edge.} b6 {[%emt 0:04:03]} 9. a4 $146 {[%emt 0:03:01]} (9. Bd3 Bb7 10. O-O O-O 11. Rfd1 Rfd8 12. Rac1 Rac8 13. Qe2 c5 14. cxd5 exd5 15. dxc5 bxc5 {1-0 Larchikov,M (1839)-Hariharan,S (1594) Daventry 4NCL op-A 30th 2023 (2)}) 9... Bb7 {[%emt 0:02:36]} 10. Be2 {[%emt 0:00:43]} Bd6 {[%emt 0:03:56]} 11. Rc1 {[%emt 0:01:15]} O-O {[%emt 0:01:17]} 12. O-O {[%emt 0:01:42]} Rac8 {[%emt 0:04:12]} 13. Qb1 {[%emt 0:00:57]} dxc4 {[%emt 0:01:43]} 14. bxc4 {[%emt 0:01:47]} Rfd8 {[%emt 0:03:58]} 15. e4 {[%emt 0:01:43]} (15. Rfd1 $14) 15... e5 $11 {[%emt 0:04:46]} 16. d5 {[%emt 0:00:34]} Nc5 {[%emt 0:01:51]} 17. Rfe1 {[%emt 0:03:28]} (17. Nd2 $11 {was preferable.}) 17... Qb8 {[%emt 0:04:27]} (17... Nb3 $15) 18. Bf1 {[%emt 0:01:17]} h6 {[%emt 0:11:27]} 19. Qa2 {[%emt 0:05:54]} Bc7 {[%emt 0:04:02]} 20. Ba3 {[%emt 0:02:57]} Bd6 {[%emt 0:03:54]} 21. Nd2 {[%emt 0:06:31]} Nfd7 {[%emt 0:05:54]} 22. g3 {[%emt 0:02:08]} Bf8 {[%emt 0:02:13] [#]} 23. a5 $1 {[%emt 0:06:58]} bxa5 {[%emt 0:02:54]} (23... Qc7 24. axb6) 24. Bxc5 {[%emt 0:02:07]} Nxc5 {[%emt 0:00:43]} 25. Qxa5 {[%emt 0:01:16]} Qc7 {[%emt 0:03:03]} 26. Qxc7 {[%emt 0:02:23]} Rxc7 {[%emt 0:00:06]} 27. Ra1 {[%emt 0:00:21]} Ra8 {[%emt 0:00:23]} 28. Na4 {[%emt 0:02:49]} f6 {[%emt 0:05:43]} (28... a5 $11) 29. Nxc5 {[%emt 0:05:10]} Bxc5 {[%emt 0:00:09]} 30. Nb3 {[%emt 0:01:48]} (30. Reb1 $5) 30... Bb4 {[%emt 0:00:42] A strong pair of Bishops.} 31. Red1 {[%emt 0:00:39]} (31. Reb1 $5) 31... cxd5 {[%emt 0:02:08]} (31... a5 $11 {remains equal.}) 32. exd5 $16 {[%emt 0:00:34][%csl Od5] White has a strong passed pawn} a5 {[%emt 0:01:42]} 33. d6 {[%emt 0:02:12]} (33. c5 $16) 33... Rd7 {[%emt 0:00:23][%cal Oa5a4] aiming for ...a4!.} 34. c5 {[%emt 0:01:12]} a4 $2 {[%emt 0:00:22]} (34... Bc6 $11) 35. Bb5 $18 {[%emt 0:00:24][%csl LRa4,LRd7]} Bf3 $2 {[%emt 0:03:28]} (35... Rdd8) 36. Bxd7 {[%emt 0:11:46]} (36. Rxa4 Rxa4 37. Bxd7 Bxd1 $14) 36... Bxd1 {[%emt 0:00:07]} 37. Rxa4 $2 {[%emt 0:00:23]} (37. Rxd1 $18 axb3 38. c6) 37... Rxa4 $11 {[%emt 0:00:53]} 38. Bxa4 {[%emt 0:01:10]} Bxb3 {[%emt 0:00:33]} 39. d7 {[%emt 0:03:51]} Ba5 {[%emt 0:00:47]} 40. Bxb3+ $14 {[%emt 0:00:32][%mdl 4096] Endgame KB-KB. White is a pawn up.} Kf8 {[%emt 0:00:07]} 41. g4 {[%emt 0:02:27]} Ke7 {[%emt 0:01:10]} 42. c6 {[%emt 0:00:41]} Kd6 {[%emt 0:01:10]} 43. Ba4 {[%emt 0:00:09]} Kd5 {[%emt 0:00:37]} 44. Kg2 {[%emt 0:00:59]} Bc7 {[%emt 0:00:12]} 45. h4 {[%emt 0:00:30][%cal Bh2h4,Bh4h5][%mdl 32]} e4 {[%emt 0:00:35] [#]} 46. f4 {[%emt 0:01:42]} exf3+ {[%emt 0:00:59]} 47. Kxf3 {[%emt 0:00:21]} Ke5 {[%emt 0:00:22]} 48. Bc2 {[%emt 0:01:03]} Bb6 {[%emt 0:00:15]} 49. h5 {[%emt 0:00:11]} Bc7 {[%emt 0:00:27]} 50. Ke3 {[%emt 0:01:49] White is more active.} Kd5 {[%emt 0:00:55]} (50... Bb6+ $142 51. Kf3 Bc7) 51. Be4+ $16 {[%emt 0:00:13]} Ke5 {[%emt 0:00:05]} 52. Bg6 {[%emt 0:01:14]} ({White should try} 52. Kd3 $16) 52... Kd5 {[%emt 0:00:27]} 53. Be8 {[%emt 0:00:14]} Ke5 {[%emt 0:00:27]} 54. Bf7 {[%emt 0:01:42]} Kd6 {[%emt 0:00:48]} 55. Ke4 {[%emt 0:00:40] White wants to play Be8.} Ke7 {[%emt 0:00:48]} (55... Kxc6 $11 56. Be6 Kd6) 56. Be8 {[%emt 0:02:38]} Ke6 {[%emt 0:00:15]} 57. Bg6 {[%emt 0:00:12]} (57. Kd4 $142) 57... Bd8 {[%emt 0:00:33]} (57... f5+ $16 {is a better defense.} 58. Bxf5+ (58. gxf5+ Kd6 $14) 58... Kd6) 58. Bh7 $2 {[%emt 0:00:17]} (58. Kd4 $18) 58... Bc7 $2 {[%emt 0:00:55]} (58... f5+ $1 $11 {and Black stays safe.} 59. Bxf5+ (59. gxf5+ Kd6 $11) 59... Kd6) 59. Bg8+ {[%emt 0:00:17]} Kd6 {[%emt 0:00:28]} 60. Kf5 {[%emt 0:00:44]} Kxc6 {[%emt 0:00:24] [#]} 61. Ke6 {[%emt 0:01:11] Hoping for Ke7.} Bd8 {[%emt 0:00:25][%cal Of6f5]} 62. Bh7 {[%emt 0:01:42]} (62. Kf7 $18 {is more deadly.}) 62... f5 {[%emt 0:00:19] White is better.} 63. Bxf5 {[%emt 0:01:17]} ({But not} 63. gxf5 Bf6 $11) 63... Kc7 {[%emt 0:00:43]} 64. Kf7 {[%emt 0:00:13]} Bf6 {[%emt 0:00:08]} 65. Ke8 {[%emt 0:12:09] Weighted Error Value: White=0.30/Black=0.33  Loses game:     	---       	Black=2      Missed win:     	White=1     	---        Mistake:       	White=8     	Black=7      Inaccurate:     	White=7     	Black=7      OK:         	White=16    	Black=15     Best:        	White=4     	Black=5} 1/2-1/2

[Event "Silves Open 2025"]
[Site "Fissul"]
[Date "2025.03.03"]
[Round "3.31"]
[White "Opatskyy, Danylo"]
[Black "Sousa, Carlos Fantasia"]
[Result "0-1"]
[Annotator "NA COMBH"]
[ECO "C01"]
[WhiteElo "1490"]
[BlackElo "1752"]
[PlyCount "50"]
[EventDate "2025.03.03"]
[EventType "swiss"]
[EventCountry "POR"]
[SourceTitle "playchess.com"]
[Source "ChessBase"]
[SourceQuality "1"]
[TimeControl "5400+30"]

1. e4 {[%emt 0:00:04]} e6 {[%emt 0:11:16]} 2. d4 {[%emt 0:00:15]} d5 {[%emt 0:00:07]} 3. exd5 {[%emt 0:00:12]} exd5 {[%emt 0:00:08]} 4. Bf4 {[%emt 0:00:12]} Nf6 {[%emt 0:00:14]} 5. Bd3 {[%emt 0:00:14]} Bd6 {[%emt 0:00:17]} 6. Bg5 {[%emt 0:00:32]} O-O {[%emt 0:00:10]} 7. Ne2 {[%emt 0:00:09]} c6 {[%emt 0:00:11]} 8. O-O {[%emt 0:00:09]} Bxh2+ {[%emt 0:00:30]} 9. Kh1 {[%emt 0:00:24]} Bd6 {[%emt 0:00:18]} 10. c4 {[%emt 0:00:00]} h6 {[%emt 0:00:10]} 11. Bh4 {[%emt 0:00:43]} Bg4 {[%emt 0:03:35]} 12. f3 {[%emt 0:00:49]} Bh5 {[%emt 0:00:13]} 13. g4 {[%emt 0:00:24]} Bg6 {[%emt 0:00:14]} 14. Bxg6 {[%emt 0:00:17]} fxg6 {[%emt 0:00:10]} 15. cxd5 {[%emt 0:00:07]} cxd5 {[%emt 0:00:17]} 16. Qb3 {[%emt 0:01:03]} Qe7 {[%emt 0:00:57]} 17. Bxf6 {[%emt 0:00:28]} Qxf6 {[%emt 0:01:56]} 18. Qxd5+ {[%emt 0:00:34]} Kh7 {[%emt 0:00:17]} 19. g5 {[%emt 0:01:02]} Qe7 {[%emt 0:00:45]} 20. Nbc3 {[%emt 0:00:49]} Rf5 {[%emt 0:00:12]} 21. Qe4 {[%emt 0:00:43]} Qxg5 {[%emt 0:00:16]} 22. Qg4 {[%emt 0:00:25]} Qe3 {[%emt 0:01:05]} 23. Qe4 {[%emt 0:00:32]} Rh5+ {[%emt 0:00:23]} 24. Qh4 {[%emt 0:05:49]} Rxh4+ {[%emt 0:00:10]} 25. Kg2 {[%emt 0:00:10]} Rh2# {[%emt 0:00:07]} 0-1

[Event "Silves Open 2025"]
[Site "Fissul"]
[Date "2025.03.03"]
[Round "3.33"]
[White "Tolentino, Andre Angelo"]
[Black "Mostafa, Hazem Farouk Mahmoud"]
[Result "0-1"]
[Annotator "NA COMBH"]
[ECO "B08"]
[WhiteElo "1843"]
[BlackElo "1769"]
[PlyCount "51"]
[EventDate "2025.03.03"]
[EventType "swiss"]
[EventCountry "POR"]
[SourceTitle "playchess.com"]
[Source "ChessBase"]
[SourceQuality "1"]
[TimeControl "5400+30"]

1. e4 {[%emt 0:00:02]} d6 {[%emt 0:00:08]} 2. d4 {[%emt 0:00:08]} Nf6 {[%emt 0:00:09]} 3. Nc3 {[%emt 0:00:10]} g6 {[%emt 0:00:12]} 4. Nf3 {[%emt 0:00:18]} Bg7 {[%emt 0:00:19]} 5. Be2 {[%emt 0:00:39]} c6 {[%emt 0:00:19]} 6. O-O {[%emt 0:00:10]} Qc7 {[%emt 0:00:33]} 7. h3 {[%emt 0:00:14]} Nbd7 {[%emt 0:00:17]} 8. Be3 {[%emt 0:00:29]} O-O {[%emt 0:00:34]} 9. Qd2 {[%emt 0:00:11]} Re8 {[%emt 0:00:13]} 10. Bh6 {[%emt 0:03:10]} Bh8 {[%emt 0:00:09]} 11. Ng5 {[%emt 0:03:38]} e5 {[%emt 0:01:26]} 12. dxe5 {[%emt 0:00:35]} dxe5 {[%emt 0:02:11]} 13. Bc4 {[%emt 0:01:06]} Re7 {[%emt 0:01:08]} 14. f4 {[%emt 0:03:06]} b5 {[%emt 0:02:48]} 15. fxe5 {[%emt 0:02:59]} Nxe5 {[%emt 0:00:25]} 16. Bb3 {[%emt 0:01:32]} a5 {[%emt 0:00:09]} 17. a3 {[%emt 0:00:11]} Ba6 {[%emt 0:00:33]} 18. Rfe1 {[%emt 0:07:07]} b4 {[%emt 0:03:52]} 19. axb4 {[%emt 0:00:54]} axb4 {[%emt 0:00:09]} 20. Ne2 {[%emt 0:00:47]} c5 {[%emt 0:00:17]} 21. Qe3 {[%emt 0:07:34]} c4 {[%emt 0:05:57]} 22. Ba2 {[%emt 0:00:09]} Rd8 {[%emt 0:05:56]} 23. Nf3 {[%emt 0:02:13]} Nxf3+ {[%emt 0:07:05]} 24. Qxf3 {[%emt 0:00:18]} Nxe4 {[%emt 0:00:07]} 25. Ng3 {[%emt 0:04:07]} Bd4+ {[%emt 0:08:42]} 26. Kh2 {[%emt 0:02:45]} 0-1

[Event "Silves Open 2025"]
[Site "Fissul"]
[Date "2025.03.03"]
[Round "3.34"]
[White "Breitkopf, Ilian"]
[Black "Machado, Manuel Antonio Ribei"]
[Result "0-1"]
[Annotator "NA COMBH"]
[ECO "C42"]
[WhiteElo "1671"]
[BlackElo "1796"]
[PlyCount "66"]
[EventDate "2025.03.03"]
[EventType "swiss"]
[EventCountry "POR"]
[SourceTitle "playchess.com"]
[Source "ChessBase"]
[SourceQuality "1"]
[TimeControl "5400+30"]

1. e4 {[%emt 0:00:05]} e5 {[%emt 0:00:13]} 2. Nf3 {[%emt 0:00:06]} Nf6 {[%emt 0:00:16]} 3. Nc3 {[%emt 0:00:24]} Bc5 {[%emt 0:01:08]} 4. Nxe5 {[%emt 0:01:18]} Nc6 {[%emt 0:02:30]} 5. Nf3 {[%emt 0:00:48]} d6 {[%emt 0:02:28]} 6. d4 {[%emt 0:01:32]} Bb6 {[%emt 0:00:43]} 7. a4 {[%emt 0:01:24]} O-O {[%emt 0:09:13]} 8. Bb5 {[%emt 0:03:34]} a6 {[%emt 0:03:53]} 9. Bxc6 {[%emt 0:00:39]} bxc6 {[%emt 0:00:08]} 10. O-O {[%emt 0:01:33]} Bb7 {[%emt 0:07:04]} 11. Bg5 {[%emt 0:03:40]} h6 {[%emt 0:00:31]} 12. Bf4 {[%emt 0:01:03]} Ba5 {[%emt 0:05:10]} 13. e5 {[%emt 0:02:09]} dxe5 {[%emt 0:05:09]} 14. dxe5 {[%emt 0:01:19]} Bxc3 {[%emt 0:03:34]} 15. Qxd8 {[%emt 0:01:31]} Raxd8 {[%emt 0:00:53]} 16. bxc3 {[%emt 0:00:22]} Nd5 {[%emt 0:01:25]} 17. Bd2 {[%emt 0:00:43]} Nb6 {[%emt 0:07:20]} 18. Be3 {[%emt 0:02:41]} Nd7 {[%emt 0:06:37]} 19. Rab1 {[%emt 0:03:56]} Ba8 {[%emt 0:00:54]} 20. Bf4 {[%emt 0:01:20]} Nc5 {[%emt 0:04:39]} 21. Rb4 {[%emt 0:01:54]} Ne6 {[%emt 0:08:07]} 22. Bg3 {[%emt 0:00:26]} c5 {[%emt 0:01:08]} 23. Rb2 {[%emt 0:02:13]} Rd7 {[%emt 0:01:57]} 24. Ne1 {[%emt 0:01:55]} Bd5 {[%emt 0:02:08]} 25. f4 {[%emt 0:06:10]} f5 {[%emt 0:02:47]} 26. exf6 {[%emt 0:02:40]} gxf6 {[%emt 0:01:18]} 27. Nd3 {[%emt 0:02:59]} Rg7 {[%emt 0:05:48]} 28. f5 {[%emt 0:00:41]} Ng5 {[%emt 0:00:30]} 29. Nxc5 {[%emt 0:00:27]} Re8 {[%emt 0:03:32]} 30. Nxa6 {[%emt 0:00:46]} Re2 {[%emt 0:00:33]} 31. Re1 {[%emt 0:15:47]} Rxe1+ {[%emt 0:03:25]} 32. Bxe1 {[%emt 0:00:43]} Nh3+ {[%emt 0:00:36]} 33. Kf1 {[%emt 0:00:11]} Bc4# {[%emt 0:00:27]} 0-1